[Event "ESP-ch Rapid 2018"]
[Site "Linares"]
[Date "2018.08.19"]
[Round "9"]
[White "Hernandez Perez, Juan Carlos"]
[Black "Salvador Lopez, Daniel"]
[Result "1-0"]
[ECO "B18"]
[WhiteElo "1946"]
[BlackElo "2162"]
[Annotator "NA"]
[PlyCount "141"]
[EventDate "2018.08.19"]
[EventType "team-tourn"]
[EventCountry "ESP"]
[SourceTitle "playchess.com"]
[Source "ChessBase"]
[SourceQuality "1"]
[TimeControl "900+5"]

1. e4 {[%emt 0:00:00]} c6 {[%emt 0:00:00]} 2. d4 {[%emt 0:00:00]} d5 {[%emt 0:00:00]} 3. Nc3 {[%emt 0:00:02]} dxe4 {[%emt 0:00:00]} 4. Nxe4 {[%emt 0:00:02]} Bf5 {[%emt 0:00:02]} 5. Ng3 {[%emt 0:00:01]} Bg6 {[%emt 0:00:01]} 6. Nf3 {[%emt 0:00:02]} Nd7 {[%emt 0:00:01]} 7. Bd3 {[%emt 0:00:10]} e6 {[%emt 0:00:04]} 8. Bf4 {[%emt 0:00:16]} Ngf6 {[%emt 0:00:03]} 9. O-O {[%emt 0:01:01]} Be7 {[%emt 0:00:04]} 10. c3 {[%emt 0:01:23]} O-O {[%emt 0:00:08]} 11. Re1 {[%emt 0:00:05]} Nd5 {[%emt 0:00:20]} 12. Bc1 {[%emt 0:00:04]} Bd6 {[%emt 0:00:13]} 13. Ne4 {[%emt 0:00:03]} Bc7 {[%emt 0:00:02]} 14. Neg5 {[%emt 0:00:42]} Bf4 {[%emt 0:00:40]} 15. Bxg6 {[%emt 0:00:44]} hxg6 {[%emt 0:00:10]} 16. Qc2 {[%emt 0:00:20]} Qf6 {[%emt 0:00:59]} 17. Qe4 {[%emt 0:00:24]} Qf5 {[%emt 0:00:37]} 18. g3 {[%emt 0:01:00]} Qxe4 {[%emt 0:01:05]} 19. Rxe4 {[%emt 0:00:17]} Bxc1 {[%emt 0:00:12]} 20. Rxc1 {[%emt 0:00:05]} N7b6 {[%emt 0:00:14]} 21. Re2 {[%emt 0:01:42]} Rad8 {[%emt 0:00:49]} 22. Ne4 {[%emt 0:00:24]} Nc4 {[%emt 0:00:26]} 23. Nfg5 {[%emt 0:00:39]} Nd6 {[%emt 0:00:41]} 24. Nc5 {[%emt 0:01:17]} b6 {[%emt 0:00:07]} 25. Nd3 {[%emt 0:00:07]} a5 {[%emt 0:01:29]} 26. Nf3 {[%emt 0:00:20]} Rc8 {[%emt 0:00:35]} 27. Nfe5 {[%emt 0:00:10]} Nf6 {[%emt 0:00:10]} 28. Kg2 {[%emt 0:00:35]} Rfd8 {[%emt 0:00:01]} 29. Nf3 {[%emt 0:00:52]} Nd7 {[%emt 0:00:20]} 30. Rd1 {[%emt 0:00:37]} Nf5 {[%emt 0:00:34]} 31. Red2 {[%emt 0:00:37]} Nf6 {[%emt 0:00:32]} 32. Ng5 {[%emt 0:00:21]} Nd7 {[%emt 0:00:16]} 33. Kf1 {[%emt 0:00:22]} Kf8 {[%emt 0:00:12]} 34. Ke1 {[%emt 0:00:14]} Ke7 {[%emt 0:00:10]} 35. Re2 {[%emt 0:00:15]} Kf8 {[%emt 0:00:21]} 36. Nf4 {[%emt 0:00:03]} Re8 {[%emt 0:00:15]} 37. Nd3 {[%emt 0:00:04]} Nh6 {[%emt 0:00:26]} 38. Nf4 {[%emt 0:00:21]} Ng4 {[%emt 0:00:36]} 39. h3 {[%emt 0:00:05]} Ngf6 {[%emt 0:00:02]} 40. Kf1 {[%emt 0:00:11]} Nd5 {[%emt 0:00:03]} 41. Nd3 {[%emt 0:00:09]} c5 {[%emt 0:00:21]} 42. dxc5 {[%emt 0:00:02]} Nxc5 {[%emt 0:00:07]} 43. Nxc5 {[%emt 0:00:03]} Rxc5 {[%emt 0:00:03]} 44. Ne4 {[%emt 0:00:01]} Rc6 {[%emt 0:00:07]} 45. Red2 {[%emt 0:00:03]} Rec8 {[%emt 0:00:09]} 46. Rd4 {[%emt 0:00:04]} Nf6 {[%emt 0:00:19]} 47. Ng5 {[%emt 0:00:19]} Nd5 {[%emt 0:00:02]} 48. Ne4 {[%emt 0:00:04]} Ke7 {[%emt 0:00:12]} 49. Ke2 {[%emt 0:00:03]} Rc4 {[%emt 0:00:33]} 50. Ng5 {[%emt 0:00:14]} Rxd4 {[%emt 0:00:25]} 51. Rxd4 {[%emt 0:00:01]} b5 {[%emt 0:00:18]} 52. Nf3 {[%emt 0:00:04]} b4 {[%emt 0:00:19]} 53. cxb4 {[%emt 0:00:26]} axb4 {[%emt 0:00:05]} 54. Rd2 {[%emt 0:00:08]} Ra8 {[%emt 0:00:03]} 55. b3 {[%emt 0:00:17]} Nc3+ {[%emt 0:00:31]} 56. Kd3 {[%emt 0:00:03]} Nxa2 {[%emt 0:00:02]} 57. Ne5 {[%emt 0:00:03]} Ra6 {[%emt 0:00:47]} 58. Kc4 {[%emt 0:00:07]} Nc3 {[%emt 0:00:07]} 59. Rd7+ {[%emt 0:00:08]} Kf6 {[%emt 0:00:02]} 60. Nxf7 {[%emt 0:00:09]} Rb6 {[%emt 0:00:18]} 61. f4 {[%emt 0:00:04]} Kf5 {[%emt 0:00:49]} 62. Ne5 {[%emt 0:00:08]} Ke4 {[%emt 0:00:12]} 63. Rxg7 {[%emt 0:00:05]} Nd5 {[%emt 0:00:08]} 64. Rxg6 {[%emt 0:00:17]} Ra6 {[%emt 0:00:28]} 65. h4 {[%emt 0:00:11]} Ra1 {[%emt 0:00:03]} 66. h5 {[%emt 0:00:06]} Rh1 {[%emt 0:00:28]} 67. h6 {[%emt 0:00:03]} Kf5 {[%emt 0:00:03]} 68. Kc5 {[%emt 0:00:26]} Rc1+ {[%emt 0:00:08]} 69. Kd6 {[%emt 0:00:04]} Nf6 {[%emt 0:00:08]} 70. g4+ {[%emt 0:00:17]} Kxf4 {[%emt 0:00:14]} 71. Nd3+ {[%emt 0:00:03]} 1-0